[Event "Titled Tuesday Blitz May 16 Late 2023"]
[White "Talbi, Chafik"]
[Black "Howell, David W L"]
[WhiteFideId "7903715"]
[BlackFideId "410608"]
[WhiteElo "2186"]
[BlackElo "2567"]
[Result "0-1"]
[Round "07"]
[TimeControl "180+2"]
[Date "2023.05.16"]
[WhiteClock "0:01:17"]
[BlackClock "0:00:55"]

1. e4 {[%clk 0:03:00]}  c5 {[%clk 0:02:19]} 2. Nf3 {[%clk 0:02:59]}  d6 {[%clk 0:02:18]} 3. c3 {[%clk 0:02:58]}  Nf6 {[%clk 0:02:13]} 4. Bd3 {[%clk 0:02:56]}  Nc6 {[%clk 0:02:13]} 5. Bc2 {[%clk 0:02:56]}  Bg4 {[%clk 0:02:10]} 6. h3 {[%clk 0:02:56]}  Bxf3 {[%clk 0:02:10]} 7. Qxf3 {[%clk 0:02:56]}  g6 {[%clk 0:02:11]} 8. O-O {[%clk 0:02:55]}  Bg7 {[%clk 0:02:09]} 9. d3 {[%clk 0:02:54]}  O-O {[%clk 0:02:06]} 10. a4 {[%clk 0:02:53]}  a6 {[%clk 0:02:05]} 11. Na3 {[%clk 0:02:52]}  Nd7 {[%clk 0:02:04]} 12. Bg5 {[%clk 0:02:50]}  Rb8 {[%clk 0:02:02]} 13. Nc4 {[%clk 0:02:45]}  b5 {[%clk 0:02:02]} 14. axb5 {[%clk 0:02:44]}  axb5 {[%clk 0:02:03]} 15. Ne3 {[%clk 0:02:23]}  b4 {[%clk 0:02:01]} 16. Nd5 {[%clk 0:02:21]}  bxc3 {[%clk 0:02:00]} 17. bxc3 {[%clk 0:02:19]}  Nb6 {[%clk 0:01:59]} 18. c4 {[%clk 0:02:05]}  Nxd5 {[%clk 0:01:51]} 19. exd5 {[%clk 0:02:03]}  Nd4 {[%clk 0:01:52]} 20. Qd1 {[%clk 0:02:02]}  Nxc2 {[%clk 0:01:49]} 21. Qxc2 {[%clk 0:02:02]}  Bxa1 {[%clk 0:01:49]} 22. Rxa1 {[%clk 0:02:03]}  Qd7 {[%clk 0:01:49]} 23. Qe2 {[%clk 0:02:01]}  Rb7 {[%clk 0:01:46]} 24. Re1 {[%clk 0:01:59]}  f6 {[%clk 0:01:43]} 25. Bh6 {[%clk 0:01:56]}  Rfb8 {[%clk 0:01:38]} 26. h4 {[%clk 0:01:51]}  Rb1 {[%clk 0:01:37]} 27. h5 {[%clk 0:01:44]}  Rxe1+ {[%clk 0:01:18]} 28. Qxe1 {[%clk 0:01:44]}  Kf7 {[%clk 0:01:18]} 29. hxg6+ {[%clk 0:01:42]}  hxg6 {[%clk 0:01:19]} 30. Bf4 {[%clk 0:01:39]}  Rb3 {[%clk 0:01:15]} 31. Qd1 {[%clk 0:01:36]}  Ra3 {[%clk 0:01:12]} 32. g3 {[%clk 0:01:34]}  Qf5 {[%clk 0:01:11]} 33. d4 {[%clk 0:01:33]}  cxd4 {[%clk 0:01:05]} 34. Qxd4 {[%clk 0:01:33]}  Qd3 {[%clk 0:01:04]} 35. Qb6 {[%clk 0:01:19]}  Qxc4 {[%clk 0:00:59]} 36. Qb7 {[%clk 0:01:19]}  Ra1+ {[%clk 0:00:56]} 37. Kg2 {[%clk 0:01:19]}  Qe4+ {[%clk 0:00:57]} 38. f3 {[%clk 0:01:19]}  Qe2+ {[%clk 0:00:52]} 39. Kh3 {[%clk 0:01:17]}  Rh1+ {[%clk 0:00:53]} 40. Kg4 {[%clk 0:01:17]}  f5+ {[%clk 0:00:54]} 41. Kg5 {[%clk 0:01:17]}  Rh5# {[%clk 0:00:55]} 0-1


[Site "https://www.chess.com"]

[Event "Titled Tuesday Blitz May 16 Late 2023"]
[White "Tarnowska, Aleksandra"]
[Black "Manon-og, Ramon Jr."]
[WhiteFideId "1180967"]
[BlackFideId "5200776"]
[WhiteElo "1776"]
[BlackElo "2330"]
[Result "1-0"]
[Round "07"]
[TimeControl "180+2"]
[Date "2023.05.16"]
[WhiteClock "0:00:10"]
[BlackClock "0:00:00"]

1. e4 {[%clk 0:02:54]}  e5 {[%clk 0:02:59]} 2. Nf3 {[%clk 0:02:48]}  Nc6 {[%clk 0:02:58]} 3. Bb5 {[%clk 0:02:46]}  a6 {[%clk 0:02:57]} 4. Ba4 {[%clk 0:02:42]}  b5 {[%clk 0:02:55]} 5. Bb3 {[%clk 0:02:41]}  Bc5 {[%clk 0:02:46]} 6. O-O {[%clk 0:02:38]}  Nf6 {[%clk 0:02:44]} 7. c3 {[%clk 0:02:35]}  O-O {[%clk 0:02:41]} 8. d4 {[%clk 0:02:33]}  exd4 {[%clk 0:02:41]} 9. cxd4 {[%clk 0:02:32]}  Bb6 {[%clk 0:02:36]} 10. d5 {[%clk 0:02:24]}  Na5 {[%clk 0:02:31]} 11. Bc2 {[%clk 0:02:21]}  d6 {[%clk 0:02:26]} 12. Bg5 {[%clk 0:02:08]}  h6 {[%clk 0:02:22]} 13. Bh4 {[%clk 0:02:06]}  Bg4 {[%clk 0:02:20]} 14. Nbd2 {[%clk 0:01:59]}  Nb7 {[%clk 0:02:13]} 15. h3 {[%clk 0:01:46]}  Bh5 {[%clk 0:02:12]} 16. Re1 {[%clk 0:01:25]}  Re8 {[%clk 0:02:01]} 17. Nf1 {[%clk 0:01:13]}  Qe7 {[%clk 0:01:48]} 18. Ng3 {[%clk 0:01:08]}  Bg6 {[%clk 0:01:44]} 19. Nf5 {[%clk 0:00:47]}  Bxf5 {[%clk 0:01:32]} 20. exf5 {[%clk 0:00:48]}  Qd7 {[%clk 0:01:10]} 21. Bxf6 {[%clk 0:00:42]}  gxf6 {[%clk 0:01:09]} 22. Qd2 {[%clk 0:00:37]}  Kh7 {[%clk 0:01:04]} 23. Nh2 {[%clk 0:00:29]}  h5 {[%clk 0:00:56]} 24. Qf4 {[%clk 0:00:19]}  Rg8 {[%clk 0:00:48]} 25. Qh4 {[%clk 0:00:19]}  Rg5 {[%clk 0:00:38]} 26. Ng4 {[%clk 0:00:14]}  Bd4 {[%clk 0:00:20]} 27. Rad1 {[%clk 0:00:10]}  Bxb2 {[%clk 0:00:18]} 28. f4 {[%clk 0:00:11]}  Rxf5 {[%clk 0:00:05]} 29. Bxf5+ {[%clk 0:00:10]}  Qxf5 {[%clk 0:00:00]} 30. Re7 {[%clk 0:00:10]} 1-0


[Site "https://www.chess.com"]

[Event "Titled Tuesday Blitz May 16 Late 2023"]
[White "Caruana, Fabiano"]
[Black "Antipov, Mikhail Al."]
[WhiteFideId "2020009"]
[BlackFideId "4107012"]
[WhiteElo "2837"]
[BlackElo "2513"]
[Result "1-0"]
[Round "08"]
[TimeControl "180+2"]
[Date "2023.05.16"]
[WhiteClock "0:00:08"]
[BlackClock "0:00:03"]

1. e4 {[%clk 0:03:00]}  c5 {[%clk 0:02:59]} 2. Nf3 {[%clk 0:03:00]}  e6 {[%clk 0:02:59]} 3. d4 {[%clk 0:03:01]}  cxd4 {[%clk 0:03:00]} 4. Nxd4 {[%clk 0:03:01]}  a6 {[%clk 0:02:59]} 5. Bd3 {[%clk 0:02:59]}  Qc7 {[%clk 0:02:59]} 6. O-O {[%clk 0:02:58]}  b6 {[%clk 0:02:56]} 7. c4 {[%clk 0:02:56]}  Bb7 {[%clk 0:02:55]} 8. Nc3 {[%clk 0:02:56]}  Nf6 {[%clk 0:02:55]} 9. Qe2 {[%clk 0:02:56]}  h5 {[%clk 0:02:48]} 10. Kh1 {[%clk 0:02:52]}  Bc5 {[%clk 0:02:11]} 11. Nb3 {[%clk 0:02:46]}  Be7 {[%clk 0:02:11]} 12. f4 {[%clk 0:02:40]}  d6 {[%clk 0:02:11]} 13. Be3 {[%clk 0:02:37]}  Nbd7 {[%clk 0:02:11]} 14. Rac1 {[%clk 0:02:35]}  Rc8 {[%clk 0:02:08]} 15. Nd2 {[%clk 0:02:32]}  Qb8 {[%clk 0:02:08]} 16. b3 {[%clk 0:02:28]}  g6 {[%clk 0:01:57]} 17. Bg1 {[%clk 0:02:24]}  h4 {[%clk 0:01:42]} 18. h3 {[%clk 0:02:19]}  Nh5 {[%clk 0:01:40]} 19. Bh2 {[%clk 0:02:19]}  Ng3+ {[%clk 0:01:26]} 20. Bxg3 {[%clk 0:02:19]}  hxg3 {[%clk 0:01:27]} 21. Nf3 {[%clk 0:02:15]}  Bf6 {[%clk 0:01:27]} 22. Qe1 {[%clk 0:02:12]}  Qa8 {[%clk 0:01:20]} 23. Bb1 {[%clk 0:02:09]}  Rh5 {[%clk 0:01:13]} 24. Qxg3 {[%clk 0:01:36]}  b5 {[%clk 0:01:08]} 25. Rfe1 {[%clk 0:01:04]}  Ke7 {[%clk 0:00:56]} 26. Nd5+ {[%clk 0:00:27]}  exd5 {[%clk 0:00:56]} 27. exd5+ {[%clk 0:00:28]}  Kf8 {[%clk 0:00:55]} 28. Bxg6 {[%clk 0:00:23]}  Rh6 {[%clk 0:00:43]} 29. Bf5 {[%clk 0:00:22]}  Rd8 {[%clk 0:00:31]} 30. Ng5 {[%clk 0:00:21]}  Nc5 {[%clk 0:00:26]} 31. Re2 {[%clk 0:00:15]}  bxc4 {[%clk 0:00:26]} 32. bxc4 {[%clk 0:00:15]}  Bc8 {[%clk 0:00:26]} 33. Bc2 {[%clk 0:00:12]}  Bd7 {[%clk 0:00:21]} 34. Rce1 {[%clk 0:00:11]}  Qb8 {[%clk 0:00:21]} 35. Nh7+ {[%clk 0:00:10]}  Rxh7 {[%clk 0:00:20]} 36. Bxh7 {[%clk 0:00:11]}  Bg7 {[%clk 0:00:20]} 37. Qg5 {[%clk 0:00:12]}  f6 {[%clk 0:00:19]} 38. Qh5 {[%clk 0:00:10]}  Re8 {[%clk 0:00:16]} 39. Bg6 {[%clk 0:00:08]}  Rxe2 {[%clk 0:00:16]} 40. Qxe2 {[%clk 0:00:09]}  Qd8 {[%clk 0:00:14]} 41. Qh5 {[%clk 0:00:09]}  Qa5 {[%clk 0:00:12]} 42. Re2 {[%clk 0:00:09]}  Qc3 {[%clk 0:00:08]} 43. Bf5 {[%clk 0:00:08]}  Qc1+ {[%clk 0:00:08]} 44. Kh2 {[%clk 0:00:08]}  Qxf4+ {[%clk 0:00:08]} 45. Kg1 {[%clk 0:00:07]}  Qxf5 {[%clk 0:00:08]} 46. Re8+ {[%clk 0:00:07]}  Bxe8 {[%clk 0:00:08]} 47. Qxf5 {[%clk 0:00:08]}  Bd7 {[%clk 0:00:09]} 48. Qf4 {[%clk 0:00:08]}  Ke7 {[%clk 0:00:09]} 49. h4 {[%clk 0:00:08]}  f5 {[%clk 0:00:09]} 50. Qe3+ {[%clk 0:00:07]}  Kf7 {[%clk 0:00:07]} 51. h5 {[%clk 0:00:06]}  Be5 {[%clk 0:00:05]} 52. Qh6 {[%clk 0:00:06]}  Ne4 {[%clk 0:00:03]} 53. Qg6+ {[%clk 0:00:06]}  Ke7 {[%clk 0:00:02]} 54. h6 {[%clk 0:00:07]}  Bd4+ {[%clk 0:00:03]} 55. Kf1 {[%clk 0:00:07]}  Be8 {[%clk 0:00:01]} 56. Qg8 {[%clk 0:00:07]}  Bf7 {[%clk 0:00:01]} 57. Qc8 {[%clk 0:00:07]}  Bg6 {[%clk 0:00:01]} 58. h7 {[%clk 0:00:06]}  Bxh7 {[%clk 0:00:01]} 59. Qc7+ {[%clk 0:00:07]}  Kf6 {[%clk 0:00:02]} 60. Qxh7 {[%clk 0:00:07]}  Ke5 {[%clk 0:00:02]} 61. Qg7+ {[%clk 0:00:07]}  Nf6 {[%clk 0:00:01]} 62. Qe7+ {[%clk 0:00:07]}  Kf4 {[%clk 0:00:02]} 63. Qxd6+ {[%clk 0:00:07]}  Ke4 {[%clk 0:00:03]} 64. Qe6+ {[%clk 0:00:07]}  Kd3 {[%clk 0:00:03]} 65. d6 {[%clk 0:00:08]}  Ng4 {[%clk 0:00:03]} 66. g3 {[%clk 0:00:08]}  Ne3+ {[%clk 0:00:03]} 67. Kg1 {[%clk 0:00:08]}  Nxc4+ {[%clk 0:00:03]} 68. Kg2 {[%clk 0:00:09]}  Ne3+ {[%clk 0:00:03]} 69. Kh3 {[%clk 0:00:08]}  Nc4 {[%clk 0:00:03]} 70. d7 {[%clk 0:00:08]} 1-0


[Site "https://www.chess.com"]

[Event "Titled Tuesday Blitz May 16 Late 2023"]
[White "Ibarra Jerez, Jose Carlos"]
[Black "Deac, Bogdan-Daniel"]
[WhiteFideId "2226332"]
[BlackFideId "1226380"]
[WhiteElo "2638"]
[BlackElo "2649"]
[Result "1/2-1/2"]
[Round "08"]
[TimeControl "180+2"]
[Date "2023.05.16"]
[WhiteClock "0:00:35"]
[BlackClock "0:00:06"]

1. e4 {[%clk 0:03:00]}  c6 {[%clk 0:03:00]} 2. Nf3 {[%clk 0:03:00]}  d5 {[%clk 0:03:00]} 3. d3 {[%clk 0:03:00]}  Nd7 {[%clk 0:03:01]} 4. g3 {[%clk 0:02:58]}  dxe4 {[%clk 0:03:01]} 5. dxe4 {[%clk 0:02:59]}  e5 {[%clk 0:03:01]} 6. Bg2 {[%clk 0:02:58]}  Ngf6 {[%clk 0:03:02]} 7. Qe2 {[%clk 0:02:56]}  Bc5 {[%clk 0:03:01]} 8. O-O {[%clk 0:02:56]}  O-O {[%clk 0:03:01]} 9. a4 {[%clk 0:02:56]}  a5 {[%clk 0:03:01]} 10. Nbd2 {[%clk 0:02:55]}  b6 {[%clk 0:03:01]} 11. Nc4 {[%clk 0:02:49]}  Ba6 {[%clk 0:03:00]} 12. b3 {[%clk 0:02:49]}  Qc7 {[%clk 0:02:50]} 13. h3 {[%clk 0:02:46]}  Rfe8 {[%clk 0:02:49]} 14. Rd1 {[%clk 0:02:44]}  Nf8 {[%clk 0:02:41]} 15. Bb2 {[%clk 0:02:41]}  Ng6 {[%clk 0:02:41]} 16. Bf1 {[%clk 0:02:21]}  h6 {[%clk 0:01:09]} 17. Qe1 {[%clk 0:02:16]}  Bb7 {[%clk 0:01:08]} 18. Bg2 {[%clk 0:02:09]}  Re6 {[%clk 0:00:52]} 19. Bc3 {[%clk 0:02:00]}  Rae8 {[%clk 0:00:44]} 20. Rd2 {[%clk 0:01:56]}  Ba6 {[%clk 0:00:26]} 21. Bf1 {[%clk 0:01:54]}  Bc8 {[%clk 0:00:26]} 22. Rad1 {[%clk 0:01:51]}  Nh5 {[%clk 0:00:25]} 23. Kh2 {[%clk 0:01:46]}  Nf6 {[%clk 0:00:22]} 24. Bg2 {[%clk 0:01:42]}  Ba6 {[%clk 0:00:15]} 25. Bf1 {[%clk 0:01:42]}  Bc8 {[%clk 0:00:16]} 26. Bg2 {[%clk 0:01:32]}  Kh7 {[%clk 0:00:12]} 27. Kg1 {[%clk 0:01:22]}  Ba6 {[%clk 0:00:06]} 28. Bf1 {[%clk 0:01:21]}  Bc8 {[%clk 0:00:06]} 29. Bg2 {[%clk 0:01:20]}  Ba6 {[%clk 0:00:06]} 30. Bf1 {[%clk 0:01:18]}  Bc8 {[%clk 0:00:06]} 31. Kh2 {[%clk 0:01:15]}  Kh8 {[%clk 0:00:06]} 32. Kg1 {[%clk 0:00:58]}  Kg8 {[%clk 0:00:06]} 33. Kh2 {[%clk 0:00:56]}  Kh7 {[%clk 0:00:05]} 34. Kg1 {[%clk 0:00:53]}  Kg8 {[%clk 0:00:05]} 35. Kh2 {[%clk 0:00:44]}  Kh7 {[%clk 0:00:05]} 36. Kg1 {[%clk 0:00:35]}  Kh8 {[%clk 0:00:05]} 37. Kh2 {[%clk 0:00:35]}  Kg8 {[%clk 0:00:06]} 1/2-1/2


[Site "https://www.chess.com"]

[Event "Titled Tuesday Blitz May 16 Late 2023"]
[White "Xiong, Jeffery"]
[Black "Andreikin, Dmitry"]
[WhiteFideId "2047640"]
[BlackFideId "4158814"]
[WhiteElo "2726"]
[BlackElo "2736"]
[Result "0-1"]
[Round "08"]
[TimeControl "180+2"]
[Date "2023.05.16"]
[WhiteClock "0:00:41"]
[BlackClock "0:00:08"]

1. d4 {[%clk 0:03:00]}  g6 {[%clk 0:03:00]} 2. e4 {[%clk 0:03:01]}  Bg7 {[%clk 0:03:01]} 3. Nf3 {[%clk 0:03:01]}  d6 {[%clk 0:03:01]} 4. Be3 {[%clk 0:03:02]}  Nf6 {[%clk 0:03:01]} 5. Nc3 {[%clk 0:03:02]}  a6 {[%clk 0:02:57]} 6. Qd2 {[%clk 0:03:02]}  b5 {[%clk 0:02:57]} 7. Bd3 {[%clk 0:03:02]}  Bb7 {[%clk 0:02:57]} 8. Bh6 {[%clk 0:03:03]}  Bxh6 {[%clk 0:02:51]} 9. Qxh6 {[%clk 0:03:03]}  Nbd7 {[%clk 0:02:51]} 10. O-O-O {[%clk 0:02:49]}  b4 {[%clk 0:02:47]} 11. Nd5 {[%clk 0:02:49]}  Nxd5 {[%clk 0:02:43]} 12. exd5 {[%clk 0:02:50]}  Bxd5 {[%clk 0:02:43]} 13. Qg7 {[%clk 0:02:47]}  Rf8 {[%clk 0:02:43]} 14. Ng5 {[%clk 0:02:41]}  Nf6 {[%clk 0:02:39]} 15. Rhe1 {[%clk 0:02:40]}  e6 {[%clk 0:02:27]} 16. f3 {[%clk 0:02:34]}  Qe7 {[%clk 0:02:09]} 17. h4 {[%clk 0:02:33]}  Rg8 {[%clk 0:02:06]} 18. Qh6 {[%clk 0:02:32]}  Qf8 {[%clk 0:02:05]} 19. Qxf8+ {[%clk 0:02:32]}  Kxf8 {[%clk 0:02:05]} 20. Ne4 {[%clk 0:02:22]}  Kg7 {[%clk 0:01:56]} 21. Nxf6 {[%clk 0:02:21]}  Kxf6 {[%clk 0:01:56]} 22. Kd2 {[%clk 0:02:19]}  a5 {[%clk 0:01:44]} 23. a3 {[%clk 0:02:19]}  Rab8 {[%clk 0:01:38]} 24. Ra1 {[%clk 0:02:19]}  bxa3 {[%clk 0:01:37]} 25. b3 {[%clk 0:02:18]}  g5 {[%clk 0:01:36]} 26. hxg5+ {[%clk 0:02:06]}  Rxg5 {[%clk 0:01:36]} 27. g4 {[%clk 0:02:04]}  Rb4 {[%clk 0:01:27]} 28. Kc3 {[%clk 0:02:02]}  c5 {[%clk 0:01:23]} 29. dxc5 {[%clk 0:01:57]}  dxc5 {[%clk 0:01:24]} 30. Rxa3 {[%clk 0:01:58]}  Bxf3 {[%clk 0:01:09]} 31. Rf1 {[%clk 0:01:44]}  Rf4 {[%clk 0:01:09]} 32. Bxh7 {[%clk 0:01:43]}  e5 {[%clk 0:00:33]} 33. Rxa5 {[%clk 0:01:41]}  Bxg4 {[%clk 0:00:33]} 34. Re1 {[%clk 0:01:32]}  Bf5 {[%clk 0:00:23]} 35. Bxf5 {[%clk 0:01:31]}  Kxf5 {[%clk 0:00:24]} 36. Rxc5 {[%clk 0:01:32]}  f6 {[%clk 0:00:24]} 37. b4 {[%clk 0:01:33]}  Rg3+ {[%clk 0:00:24]} 38. Kd2 {[%clk 0:01:28]}  Rd4+ {[%clk 0:00:24]} 39. Kc1 {[%clk 0:01:28]}  Rxb4 {[%clk 0:00:24]} 40. Rc6 {[%clk 0:01:28]}  Rf4 {[%clk 0:00:23]} 41. Rh1 {[%clk 0:01:27]}  Rgf3 {[%clk 0:00:17]} 42. Rh8 {[%clk 0:01:26]}  Ke4 {[%clk 0:00:17]} 43. Rd8 {[%clk 0:01:23]}  Ke3 {[%clk 0:00:16]} 44. Rc7 {[%clk 0:01:10]}  e4 {[%clk 0:00:16]} 45. Rh8 {[%clk 0:01:03]}  f5 {[%clk 0:00:15]} 46. Rh2 {[%clk 0:01:02]}  Rf1+ {[%clk 0:00:14]} 47. Kb2 {[%clk 0:01:02]}  R1f2 {[%clk 0:00:15]} 48. Rc3+ {[%clk 0:00:59]}  Ke2 {[%clk 0:00:15]} 49. Rh5 {[%clk 0:00:55]}  e3 {[%clk 0:00:13]} 50. Rc5 {[%clk 0:00:47]}  R4f3 {[%clk 0:00:12]} 51. c4 {[%clk 0:00:42]}  Kd3+ {[%clk 0:00:09]} 52. Kb3 {[%clk 0:00:43]}  e2 {[%clk 0:00:09]} 53. Rd5+ {[%clk 0:00:41]}  Ke4+ {[%clk 0:00:08]} 0-1


[Site "https://www.chess.com"]

[Event "Titled Tuesday Blitz May 16 Late 2023"]
[White "Hakobyan, Aram"]
[Black "Alex_Sahakyan2006"]
[WhiteFideId "13306677"]
[WhiteElo "2584"]
[BlackElo "2716"]
[Result "1-0"]
[Round "08"]
[TimeControl "180+2"]
[Date "2023.05.16"]
[WhiteClock "0:00:21"]
[BlackClock "0:00:00"]

1. d4 {[%clk 0:03:00]}  Nf6 {[%clk 0:02:59]} 2. c4 {[%clk 0:03:01]}  c5 {[%clk 0:02:55]} 3. d5 {[%clk 0:03:01]}  b5 {[%clk 0:02:56]} 4. Qc2 {[%clk 0:03:00]}  b4 {[%clk 0:02:53]} 5. e4 {[%clk 0:02:59]}  d6 {[%clk 0:02:52]} 6. Bd3 {[%clk 0:02:55]}  g6 {[%clk 0:02:49]} 7. Ne2 {[%clk 0:02:50]}  Bg7 {[%clk 0:02:46]} 8. O-O {[%clk 0:02:50]}  O-O {[%clk 0:02:31]} 9. Nd2 {[%clk 0:02:50]}  a5 {[%clk 0:02:25]} 10. a4 {[%clk 0:02:44]}  bxa3 {[%clk 0:02:08]} 11. Rxa3 {[%clk 0:02:44]}  Na6 {[%clk 0:02:07]} 12. Qd1 {[%clk 0:02:38]}  Nb4 {[%clk 0:02:07]} 13. Bb1 {[%clk 0:02:36]}  Nd7 {[%clk 0:02:03]} 14. Nc3 {[%clk 0:02:33]}  Ne5 {[%clk 0:01:58]} 15. Qe2 {[%clk 0:02:22]}  Ba6 {[%clk 0:01:44]} 16. f4 {[%clk 0:02:22]}  Nd7 {[%clk 0:01:44]} 17. Kh1 {[%clk 0:02:22]}  e6 {[%clk 0:01:32]} 18. dxe6 {[%clk 0:02:01]}  fxe6 {[%clk 0:01:33]} 19. Qg4 {[%clk 0:01:59]}  Qe7 {[%clk 0:01:28]} 20. Rxa5 {[%clk 0:01:53]}  Nb8 {[%clk 0:01:23]} 21. Ra3 {[%clk 0:01:36]}  N8c6 {[%clk 0:01:23]} 22. Nb5 {[%clk 0:01:26]}  Bxb5 {[%clk 0:01:12]} 23. cxb5 {[%clk 0:01:26]}  Nd4 {[%clk 0:01:12]} 24. Rxa8 {[%clk 0:01:19]}  Rxa8 {[%clk 0:01:13]} 25. b6 {[%clk 0:01:19]}  Rf8 {[%clk 0:00:41]} 26. Nf3 {[%clk 0:01:06]}  Ndc6 {[%clk 0:00:33]} 27. Ng5 {[%clk 0:01:02]}  Nd4 {[%clk 0:00:32]} 28. Be3 {[%clk 0:00:52]}  h6 {[%clk 0:00:19]} 29. Bxd4 {[%clk 0:00:52]}  hxg5 {[%clk 0:00:19]} 30. Bxg7 {[%clk 0:00:52]}  Kxg7 {[%clk 0:00:19]} 31. f5 {[%clk 0:00:48]}  exf5 {[%clk 0:00:14]} 32. exf5 {[%clk 0:00:49]}  Nd5 {[%clk 0:00:14]} 33. Qg3 {[%clk 0:00:37]}  gxf5 {[%clk 0:00:12]} 34. b7 {[%clk 0:00:35]}  g4 {[%clk 0:00:08]} 35. Bxf5 {[%clk 0:00:28]}  Ne3 {[%clk 0:00:08]} 36. Re1 {[%clk 0:00:28]}  Qxb7 {[%clk 0:00:01]} 37. Rxe3 {[%clk 0:00:19]}  Rxf5 {[%clk 0:00:01]} 38. Qxg4+ {[%clk 0:00:20]}  Kf6 {[%clk 0:00:00]} 39. Qh4+ {[%clk 0:00:21]} 1-0


[Site "https://www.chess.com"]

[Event "Titled Tuesday Blitz May 16 Late 2023"]
[White "Mihajlov, Sebastian"]
[Black "Durarbayli, Vasif"]
[WhiteFideId "1512110"]
[BlackFideId "13402935"]
[WhiteElo "2478"]
[BlackElo "2551"]
[Result "1-0"]
[Round "08"]
[TimeControl "180+2"]
[Date "2023.05.16"]
[WhiteClock "0:00:04"]
[BlackClock "0:00:00"]

1. e4 {[%clk 0:03:00]}  c5 {[%clk 0:02:58]} 2. Nf3 {[%clk 0:03:01]}  d6 {[%clk 0:02:59]} 3. d4 {[%clk 0:03:02]}  cxd4 {[%clk 0:02:59]} 4. Nxd4 {[%clk 0:03:02]}  Nf6 {[%clk 0:02:59]} 5. Nc3 {[%clk 0:03:03]}  Nc6 {[%clk 0:03:00]} 6. Bg5 {[%clk 0:03:03]}  Qb6 {[%clk 0:03:00]} 7. Nb3 {[%clk 0:02:58]}  e6 {[%clk 0:02:58]} 8. Qd2 {[%clk 0:02:48]}  a6 {[%clk 0:02:58]} 9. a4 {[%clk 0:02:39]}  Be7 {[%clk 0:02:44]} 10. Be3 {[%clk 0:02:30]}  Qb4 {[%clk 0:02:18]} 11. f3 {[%clk 0:02:30]}  Bd7 {[%clk 0:02:16]} 12. a5 {[%clk 0:02:27]}  Ne5 {[%clk 0:02:13]} 13. Qd4 {[%clk 0:02:14]}  Qxd4 {[%clk 0:02:10]} 14. Bxd4 {[%clk 0:02:02]}  Rc8 {[%clk 0:02:09]} 15. Bd3 {[%clk 0:01:48]}  g5 {[%clk 0:01:53]} 16. Na4 {[%clk 0:01:40]}  Nxd3+ {[%clk 0:01:16]} 17. cxd3 {[%clk 0:01:40]}  Rc2 {[%clk 0:01:17]} 18. O-O {[%clk 0:01:36]}  Bb5 {[%clk 0:01:15]} 19. Rfd1 {[%clk 0:01:33]}  O-O {[%clk 0:01:13]} 20. Bc3 {[%clk 0:01:26]}  e5 {[%clk 0:00:57]} 21. Nb6 {[%clk 0:01:23]}  g4 {[%clk 0:00:52]} 22. f4 {[%clk 0:01:19]}  Nh5 {[%clk 0:00:49]} 23. fxe5 {[%clk 0:01:01]}  Nf4 {[%clk 0:00:43]} 24. Nd4 {[%clk 0:00:51]}  Rxg2+ {[%clk 0:00:37]} 25. Kh1 {[%clk 0:00:52]}  g3 {[%clk 0:00:16]} 26. hxg3 {[%clk 0:00:34]}  Rxg3 {[%clk 0:00:17]} 27. Rg1 {[%clk 0:00:35]}  Rg6 {[%clk 0:00:17]} 28. Nf5 {[%clk 0:00:33]}  Bg5 {[%clk 0:00:13]} 29. exd6 {[%clk 0:00:32]}  f6 {[%clk 0:00:13]} 30. Ne7+ {[%clk 0:00:31]}  Kf7 {[%clk 0:00:14]} 31. Nxg6 {[%clk 0:00:32]}  hxg6 {[%clk 0:00:15]} 32. Rxg5 {[%clk 0:00:17]}  fxg5 {[%clk 0:00:15]} 33. d4 {[%clk 0:00:17]}  Be2 {[%clk 0:00:11]} 34. e5 {[%clk 0:00:12]}  Rh8+ {[%clk 0:00:09]} 35. Kg1 {[%clk 0:00:13]}  Bf3 {[%clk 0:00:09]} 36. Kf2 {[%clk 0:00:13]}  g4 {[%clk 0:00:07]} 37. d7 {[%clk 0:00:11]}  Ke7 {[%clk 0:00:07]} 38. Bb4+ {[%clk 0:00:11]}  Kd8 {[%clk 0:00:07]} 39. Bd6 {[%clk 0:00:06]}  Rh2+ {[%clk 0:00:04]} 40. Kg3 {[%clk 0:00:05]}  Rh5 {[%clk 0:00:01]} 41. Kxf4 {[%clk 0:00:06]}  g5+ {[%clk 0:00:02]} 42. Ke3 {[%clk 0:00:06]}  Rh3 {[%clk 0:00:02]} 43. Kd2 {[%clk 0:00:04]}  g3 {[%clk 0:00:02]} 44. e6 {[%clk 0:00:04]}  Rh2+ {[%clk 0:00:00]} 45. Kc3 {[%clk 0:00:04]} 1-0


[Site "https://www.chess.com"]

[Event "Titled Tuesday Blitz May 16 Late 2023"]
[White "Rustemov, Alexander"]
[Black "Sviridov, Valery"]
[WhiteFideId "4119002"]
[BlackFideId "4120680"]
[WhiteElo "2978"]
[BlackElo "2457"]
[Result "0-1"]
[Round "08"]
[TimeControl "180+2"]
[Date "2023.05.16"]
[WhiteClock "0:00:00"]
[BlackClock "0:00:56"]

1. d4 {[%clk 0:03:00]}  Nf6 {[%clk 0:02:57]} 2. c4 {[%clk 0:03:01]}  e5 {[%clk 0:02:57]} 3. dxe5 {[%clk 0:02:59]}  Ng4 {[%clk 0:02:54]} 4. e3 {[%clk 0:03:00]}  Nxe5 {[%clk 0:02:53]} 5. Nh3 {[%clk 0:03:00]}  g6 {[%clk 0:02:43]} 6. Nf4 {[%clk 0:03:00]}  Bg7 {[%clk 0:02:44]} 7. Be2 {[%clk 0:03:01]}  O-O {[%clk 0:02:44]} 8. O-O {[%clk 0:03:01]}  d6 {[%clk 0:02:44]} 9. Nc3 {[%clk 0:02:57]}  Na6 {[%clk 0:02:39]} 10. Qd2 {[%clk 0:02:56]}  Nc5 {[%clk 0:02:39]} 11. b3 {[%clk 0:02:55]}  a5 {[%clk 0:02:39]} 12. Ba3 {[%clk 0:02:42]}  Bf5 {[%clk 0:02:33]} 13. Rac1 {[%clk 0:02:41]}  Ne4 {[%clk 0:02:31]} 14. Nxe4 {[%clk 0:02:40]}  Bxe4 {[%clk 0:02:32]} 15. Rfd1 {[%clk 0:02:31]}  Qg5 {[%clk 0:02:31]} 16. Kh1 {[%clk 0:02:14]}  Qh4 {[%clk 0:02:26]} 17. f3 {[%clk 0:02:11]}  Bc6 {[%clk 0:02:25]} 18. Nd5 {[%clk 0:02:00]}  Qd8 {[%clk 0:02:14]} 19. c5 {[%clk 0:01:48]}  dxc5 {[%clk 0:01:25]} 20. Bxc5 {[%clk 0:01:47]}  Re8 {[%clk 0:01:26]} 21. Ne7+ {[%clk 0:01:45]}  Kh8 {[%clk 0:01:26]} 22. Qxd8 {[%clk 0:01:20]}  Rexd8 {[%clk 0:01:27]} 23. Nxc6 {[%clk 0:01:20]}  Nxc6 {[%clk 0:01:27]} 24. Rxd8+ {[%clk 0:01:17]}  Rxd8 {[%clk 0:01:28]} 25. Rd1 {[%clk 0:01:18]}  Rxd1+ {[%clk 0:01:22]} 26. Bxd1 {[%clk 0:01:18]}  Nb4 {[%clk 0:01:18]} 27. a4 {[%clk 0:01:06]}  Nd3 {[%clk 0:01:18]} 28. Be7 {[%clk 0:00:33]}  Nf2+ {[%clk 0:01:18]} 29. Kg1 {[%clk 0:00:33]}  Nxd1 {[%clk 0:01:19]} 30. e4 {[%clk 0:00:31]}  Be5 {[%clk 0:01:11]} 31. g3 {[%clk 0:00:28]}  Kg7 {[%clk 0:01:11]} 32. Kf1 {[%clk 0:00:28]}  Nc3 {[%clk 0:01:08]} 33. Kf2 {[%clk 0:00:25]}  Na2 {[%clk 0:01:07]} 34. Ke3 {[%clk 0:00:23]}  Bd6 {[%clk 0:01:06]} 35. Bd8 {[%clk 0:00:23]}  Nc1 {[%clk 0:01:05]} 36. f4 {[%clk 0:00:20]}  f6 {[%clk 0:01:05]} 37. g4 {[%clk 0:00:10]}  Nxb3 {[%clk 0:01:03]} 38. h4 {[%clk 0:00:09]}  Kf7 {[%clk 0:01:03]} 39. g5 {[%clk 0:00:09]}  fxg5 {[%clk 0:01:04]} 40. hxg5 {[%clk 0:00:09]}  Ke6 {[%clk 0:01:03]} 41. Bf6 {[%clk 0:00:09]}  Nc5 {[%clk 0:01:03]} 42. Ba1 {[%clk 0:00:07]}  Nxa4 {[%clk 0:01:03]} 43. Kf3 {[%clk 0:00:07]}  Nb6 {[%clk 0:01:03]} 44. Kg4 {[%clk 0:00:07]}  a4 {[%clk 0:01:03]} 45. f5+ {[%clk 0:00:07]}  gxf5+ {[%clk 0:01:03]} 46. exf5+ {[%clk 0:00:07]}  Kf7 {[%clk 0:01:04]} 47. Kh5 {[%clk 0:00:07]}  Kg8 {[%clk 0:01:01]} 48. g6 {[%clk 0:00:03]}  hxg6+ {[%clk 0:01:01]} 49. Kxg6 {[%clk 0:00:03]}  a3 {[%clk 0:00:59]} 50. f6 {[%clk 0:00:03]}  Nd7 {[%clk 0:00:55]} 51. f7+ {[%clk 0:00:03]}  Kf8 {[%clk 0:00:55]} 52. Bg7+ {[%clk 0:00:01]}  Ke7 {[%clk 0:00:56]} 53. Bh6 {[%clk 0:00:01]}  Ke6 {[%clk 0:00:56]} 54. Bg7 {[%clk 0:00:00]}  a2 {[%clk 0:00:56]} 0-1


[Site "https://www.chess.com"]